{"text_format":"3","workbook":"xlsx","n_sheets":2,"sheets":["START","PERSONLIGT MÅNEDLIGT BUDGET"],"read":"whole","date_system":"1900"}

{"sheet":"START","index":0,"n_rows":7,"n_cols":2,"rows_kept":7}
[null,"OM DENNE SKABELON"]
[null,"Brug dette regneark med et personligt månedsbudget til at holde styr på dine forventede og faktiske månedlige indtægter samt forventede og faktiske udgifter."]
[null,"Angiv udgifter i de forskellige kategorier i deres respektive tabeller."]
[null,"Forventet saldo, faktisk saldo og differencen beregnes automatisk."]
[null,"Bemærk: "]
[null,"Der er yderligere vejledning at finde i kolonne A i regnearket PERSONLIGT MÅNEDLIGT BUDGET. Denne tekst er skjult med vilje. Du kan fjerne tekst ved at markere kolonne A og derefter vælge Slet. For ikke længere at skjule tekst skal du markere kolonne A og derefter ændre skriftfarven."]
[null,"Hvis du vil vide mere om tabellerne i regnearket, skal du trykke på Skift og derefter F10, mens du er i en tabel, vælge indstillingen Tabel og derefter vælge Alternativ tekst."]

{"sheet":"PERSONLIGT MÅNEDLIGT BUDGET","index":1,"n_rows":64,"n_cols":10,"rows_kept":64,"merged":[[3,1,5,1],[3,2,3,3],[3,6,4,8],[3,9,4,9],[4,2,4,3],[5,2,5,3],[5,6,6,8],[5,9,6,9],[7,1,9,1],[7,2,7,3],[7,6,8,8],[7,9,8,9],[8,2,8,3],[9,2,9,3],[58,6,59,8],[58,9,59,9],[60,6,61,8],[60,9,61,9],[62,6,63,8],[62,9,63,9]]}
["Opret et personligt månedligt budget i dette regneark. I cellerne i denne kolonne vises en udførlig vejledning i, hvordan man bruger dette regneark. Pil ned for at starte."]
["Titlen på dette regneark vises i cellen til højre. Den næste vejledning er i celle A4.","PERSONLIGT MÅNEDLIGT BUDGET"]
[]
["Mærkaten for forventede månedlige indtægter er i cellen til højre. Angiv indtægt 1 i celle E4 og yderligere indtægt i E5 for at beregne samlede månedlige indtægter i E6. Den næste vejledning er i celle A6.","FORVENTET MÅNEDLIG INDTÆGT","Indtægt 1",null,{"v":4300,"d":"4,300.00 kr."},null,"FORVENTET SALDO \n(Forventede indtægter minus udgifter)",null,null,{"$f":"E6-J59","v":{"v":3405,"d":"3,405.00 kr."}}]
[null,null,"Yderligere indtægt",null,{"v":300,"d":"300.00 kr."}]
["Forventet saldo beregnes automatisk i celle J4, faktisk saldo i J6 og forskel i J8 automatisk. Den næste vejledning er i celle A8.",null,"Samlet månedlig indtægt",null,{"$f":"SUM(E4:E5)","v":{"v":4600,"d":"4,600.00 kr."}},null,"FAKTISK SALDO \n(Faktiske indtægter minus udgifter)",null,null,{"$f":"E10-J61","v":{"v":3064,"d":"3,064.00 kr."}}]
[]
["Mærkaten for faktiske månedlige indtægter er i cellen til højre. Angiv indtægt 1 i celle E8 og yderligere indtægt i E9 for at beregne samlede månedlige indtægter i E10. Den næste vejledning er i celle A12.","FAKTISK MÅNEDLIG INDTÆGT","Indtægt 1",null,{"v":4000,"d":"4,000.00 kr."},null,"FORSKEL \n(Faktisk minus forventet)",null,null,{"$f":"J6-J4","v":{"v":-341,"d":"-341.00 kr."}}]
[null,null,"Yderligere indtægt",null,{"v":300,"d":"300.00 kr."}]
[null,null,"Samlet månedlig indtægt",null,{"$f":"SUM(E8:E9)","v":{"v":4300,"d":"4,300.00 kr."}}]
[]
["Angiv oplysninger i tabellen Bolig, der begynder i cellen til højre, og i tabellen Underholdning, der begynder i celle G12. Den næste vejledning er i celle A25.","BOLIG","Forventet pris","Faktisk pris","Forskel",null,"UNDERHOLDNING","Forventet pris","Faktisk pris","Forskel"]
[null,"Realkreditlån eller husleje",{"v":1000,"d":"1,000.00 kr."},{"v":1000,"d":"1,000.00 kr."},{"$f":"Bolig[[#This Row],[Forventet pris]]-Bolig[[#This Row],[Faktisk pris]]","v":{"v":0,"d":"0.00 kr."}},null,"Gå i byen",null,null,{"$f":"Underholdning[[#This Row],[Forventet pris]]-Underholdning[[#This Row],[Faktisk pris]]","v":{"v":0,"d":"0.00 kr."}}]
[null,"Telefonnummer",{"v":54,"d":"54.00 kr."},{"v":100,"d":"100.00 kr."},{"$f":"Bolig[[#This Row],[Forventet pris]]-Bolig[[#This Row],[Faktisk pris]]","v":{"v":-46,"d":"-46.00 kr."}},null,"Musikplatforme",null,null,{"$f":"Underholdning[[#This Row],[Forventet pris]]-Underholdning[[#This Row],[Faktisk pris]]","v":{"v":0,"d":"0.00 kr."}}]
[null,"El",{"v":44,"d":"44.00 kr."},{"v":56,"d":"56.00 kr."},{"$f":"Bolig[[#This Row],[Forventet pris]]-Bolig[[#This Row],[Faktisk pris]]","v":{"v":-12,"d":"-12.00 kr."}},null,"Film",null,null,{"$f":"Underholdning[[#This Row],[Forventet pris]]-Underholdning[[#This Row],[Faktisk pris]]","v":{"v":0,"d":"0.00 kr."}}]
[null,"Benzin",{"v":22,"d":"22.00 kr."},{"v":28,"d":"28.00 kr."},{"$f":"Bolig[[#This Row],[Forventet pris]]-Bolig[[#This Row],[Faktisk pris]]","v":{"v":-6,"d":"-6.00 kr."}},null,"Koncerter",null,null,{"$f":"Underholdning[[#This Row],[Forventet pris]]-Underholdning[[#This Row],[Faktisk pris]]","v":{"v":0,"d":"0.00 kr."}}]
[null,"Vand og kloak",{"v":8,"d":"8.00 kr."},{"v":8,"d":"8.00 kr."},{"$f":"Bolig[[#This Row],[Forventet pris]]-Bolig[[#This Row],[Faktisk pris]]","v":{"v":0,"d":"0.00 kr."}},null,"Sportsbegivenheder",null,null,{"$f":"Underholdning[[#This Row],[Forventet pris]]-Underholdning[[#This Row],[Faktisk pris]]","v":{"v":0,"d":"0.00 kr."}}]
[null,"Tv-pakke",{"v":34,"d":"34.00 kr."},{"v":34,"d":"34.00 kr."},{"$f":"Bolig[[#This Row],[Forventet pris]]-Bolig[[#This Row],[Faktisk pris]]","v":{"v":0,"d":"0.00 kr."}},null,"Live teater",null,null,{"$f":"Underholdning[[#This Row],[Forventet pris]]-Underholdning[[#This Row],[Faktisk pris]]","v":{"v":0,"d":"0.00 kr."}}]
[null,"Bortskaffelse af affald",{"v":10,"d":"10.00 kr."},{"v":10,"d":"10.00 kr."},{"$f":"Bolig[[#This Row],[Forventet pris]]-Bolig[[#This Row],[Faktisk pris]]","v":{"v":0,"d":"0.00 kr."}},null,"Andet",null,null,{"$f":"Underholdning[[#This Row],[Forventet pris]]-Underholdning[[#This Row],[Faktisk pris]]","v":{"v":0,"d":"0.00 kr."}}]
[null,"Vedligeholdelse eller reparation",{"v":23,"d":"23.00 kr."},{"v":0,"d":"0.00 kr."},{"$f":"Bolig[[#This Row],[Forventet pris]]-Bolig[[#This Row],[Faktisk pris]]","v":{"v":23,"d":"23.00 kr."}},null,"Andet",null,null,{"$f":"Underholdning[[#This Row],[Forventet pris]]-Underholdning[[#This Row],[Faktisk pris]]","v":{"v":0,"d":"0.00 kr."}}]
[null,"Forsyninger",{"v":0,"d":"0.00 kr."},{"v":0,"d":"0.00 kr."},{"$f":"Bolig[[#This Row],[Forventet pris]]-Bolig[[#This Row],[Faktisk pris]]","v":{"v":0,"d":"0.00 kr."}},null,"Andet",null,null,{"$f":"Underholdning[[#This Row],[Forventet pris]]-Underholdning[[#This Row],[Faktisk pris]]","v":{"v":0,"d":"0.00 kr."}}]
[null,"Andet",{"v":0,"d":"0.00 kr."},{"v":0,"d":"0.00 kr."},{"$f":"Bolig[[#This Row],[Forventet pris]]-Bolig[[#This Row],[Faktisk pris]]","v":{"v":0,"d":"0.00 kr."}},null,"Subtotal",null,null,{"$f":"SUBTOTAL(109,Underholdning[Forskel])","v":{"v":0,"d":"0.00 kr."}}]
[null,"Subtotal",null,null,{"$f":"SUBTOTAL(109,Bolig[Forskel])","v":{"v":-41,"d":"-41.00 kr."}}]
[{"$nulls":6},"LÅN","Forventet pris","Faktisk pris","Forskel"]
["Angiv oplysninger i tabellen Transport, der begynder i cellen til højre, og i tabellen Lån, der begynder i celle G24. Den næste vejledning er i celle A35.","TRANSPORT","Forventet pris","Faktisk pris","Forskel",null,"Privat",null,null,{"$f":"Lån[[#This Row],[Forventet pris]]-Lån[[#This Row],[Faktisk pris]]","v":{"v":0,"d":"0.00 kr."}}]
[null,"Afbetaling af køretøj",null,null,{"$f":"Transport[[#This Row],[Forventet pris]]-Transport[[#This Row],[Faktisk pris]]","v":{"v":0,"d":"0.00 kr."}},null,"Studerende",null,null,{"$f":"Lån[[#This Row],[Forventet pris]]-Lån[[#This Row],[Faktisk pris]]","v":{"v":0,"d":"0.00 kr."}}]
[null,"Udgifter til bus/taxa",null,null,{"$f":"Transport[[#This Row],[Forventet pris]]-Transport[[#This Row],[Faktisk pris]]","v":{"v":0,"d":"0.00 kr."}},null,"Kreditkort",null,null,{"$f":"Lån[[#This Row],[Forventet pris]]-Lån[[#This Row],[Faktisk pris]]","v":{"v":0,"d":"0.00 kr."}}]
[null,"Forsikring",null,null,{"$f":"Transport[[#This Row],[Forventet pris]]-Transport[[#This Row],[Faktisk pris]]","v":{"v":0,"d":"0.00 kr."}},null,"Kreditkort",null,null,{"$f":"Lån[[#This Row],[Forventet pris]]-Lån[[#This Row],[Faktisk pris]]","v":{"v":0,"d":"0.00 kr."}}]
[null,"Licens",null,null,{"$f":"Transport[[#This Row],[Forventet pris]]-Transport[[#This Row],[Faktisk pris]]","v":{"v":0,"d":"0.00 kr."}},null,"Kreditkort",null,null,{"$f":"Lån[[#This Row],[Forventet pris]]-Lån[[#This Row],[Faktisk pris]]","v":{"v":0,"d":"0.00 kr."}}]
[null,"Brændstof",null,null,{"$f":"Transport[[#This Row],[Forventet pris]]-Transport[[#This Row],[Faktisk pris]]","v":{"v":0,"d":"0.00 kr."}},null,"Andet",null,null,{"$f":"Lån[[#This Row],[Forventet pris]]-Lån[[#This Row],[Faktisk pris]]","v":{"v":0,"d":"0.00 kr."}}]
[null,"Vedligeholdelse",null,null,{"$f":"Transport[[#This Row],[Forventet pris]]-Transport[[#This Row],[Faktisk pris]]","v":{"v":0,"d":"0.00 kr."}},null,"Subtotal",null,null,{"$f":"SUBTOTAL(109,Lån[Forskel])","v":{"v":0,"d":"0.00 kr."}}]
[null,"Andet",null,null,{"$f":"Transport[[#This Row],[Forventet pris]]-Transport[[#This Row],[Faktisk pris]]","v":{"v":0,"d":"0.00 kr."}}]
[null,"Subtotal",null,null,{"$f":"SUBTOTAL(109,Transport[Forskel])","v":{"v":0,"d":"0.00 kr."}},null,"SKAT","Forventet pris","Faktisk pris","Forskel"]
[{"$nulls":6},"National",null,null,{"$f":"Skat[[#This Row],[Forventet pris]]-Skat[[#This Row],[Faktisk pris]]","v":{"v":0,"d":"0.00 kr."}}]
["Angiv oplysninger i tabellen Forsikring, der begynder i cellen til højre, og i tabellen Skat, der begynder i celle G33. Den næste vejledning er i celle A42.","FORSIKRING","Forventet pris","Faktisk pris","Forskel",null,"Regional",null,null,{"$f":"Skat[[#This Row],[Forventet pris]]-Skat[[#This Row],[Faktisk pris]]","v":{"v":0,"d":"0.00 kr."}}]
[null,"Hus",null,null,{"$f":"Forsikring[[#This Row],[Forventet pris]]-Forsikring[[#This Row],[Faktisk pris]]","v":{"v":0,"d":"0.00 kr."}},null,"Lokal",null,null,{"$f":"Skat[[#This Row],[Forventet pris]]-Skat[[#This Row],[Faktisk pris]]","v":{"v":0,"d":"0.00 kr."}}]
[null,"Sundhed",null,null,{"$f":"Forsikring[[#This Row],[Forventet pris]]-Forsikring[[#This Row],[Faktisk pris]]","v":{"v":0,"d":"0.00 kr."}},null,"Andet",null,null,{"$f":"Skat[[#This Row],[Forventet pris]]-Skat[[#This Row],[Faktisk pris]]","v":{"v":0,"d":"0.00 kr."}}]
[null,"Liv",null,null,{"$f":"Forsikring[[#This Row],[Forventet pris]]-Forsikring[[#This Row],[Faktisk pris]]","v":{"v":0,"d":"0.00 kr."}},null,"Subtotal",null,null,{"$f":"SUBTOTAL(109,Skat[Forskel])","v":{"v":0,"d":"0.00 kr."}}]
[null,"Andet",null,null,{"$f":"Forsikring[[#This Row],[Forventet pris]]-Forsikring[[#This Row],[Faktisk pris]]","v":{"v":0,"d":"0.00 kr."}}]
[null,"Subtotal",null,null,{"$f":"SUBTOTAL(109,Forsikring[Forskel])","v":{"v":0,"d":"0.00 kr."}},null,"OPSPARINGER ELLER INVESTERINGER","Forventet pris","Faktisk pris","Forskel"]
[{"$nulls":6},"Pensionskonto",null,null,{"$f":"Opsparing[[#This Row],[Forventet pris]]-Opsparing[[#This Row],[Faktisk pris]]","v":{"v":0,"d":"0.00 kr."}}]
["Angiv oplysninger i tabellen Mad, der begynder i cellen til højre, og i tabellen Opsparing, der begynder i celle G40. Den næste vejledning er i celle A48.","MAD","Forventet pris","Faktisk pris","Forskel",null,"Investeringskonto",null,null,{"$f":"Opsparing[[#This Row],[Forventet pris]]-Opsparing[[#This Row],[Faktisk pris]]","v":{"v":0,"d":"0.00 kr."}}]
[null,"Dagligvarer",null,null,{"$f":"Mad[[#This Row],[Forventet pris]]-Mad[[#This Row],[Faktisk pris]]","v":{"v":0,"d":"0.00 kr."}},null,"Andet",null,null,{"$f":"Opsparing[[#This Row],[Forventet pris]]-Opsparing[[#This Row],[Faktisk pris]]","v":{"v":0,"d":"0.00 kr."}}]
[null,"Mad på restaurant",null,null,{"$f":"Mad[[#This Row],[Forventet pris]]-Mad[[#This Row],[Faktisk pris]]","v":{"v":0,"d":"0.00 kr."}},null,"Subtotal",null,null,{"$f":"SUBTOTAL(109,Opsparing[Forskel])","v":{"v":0,"d":"0.00 kr."}}]
[null,"Andet",null,null,{"$f":"Mad[[#This Row],[Forventet pris]]-Mad[[#This Row],[Faktisk pris]]","v":{"v":0,"d":"0.00 kr."}}]
[null,"Subtotal",null,null,{"$f":"SUBTOTAL(109,Mad[Forskel])","v":{"v":0,"d":"0.00 kr."}},null,"GAVER OG BIDRAG","Forventet pris","Faktisk pris","Forskel"]
[{"$nulls":6},"Velgørenhed 1",null,null,{"$f":"Gaver[[#This Row],[Forventet pris]]-Gaver[[#This Row],[Faktisk pris]]","v":{"v":0,"d":"0.00 kr."}}]
["Angiv oplysninger i tabellen Kæledyr, der begynder i cellen til højre, og i tabellen Gaver, der begynder i celle G46. Den næste vejledning er i celle A56.","KÆLEDYR","Forventet pris","Faktisk pris","Forskel",null,"Velgørenhed 2",null,null,{"$f":"Gaver[[#This Row],[Forventet pris]]-Gaver[[#This Row],[Faktisk pris]]","v":{"v":0,"d":"0.00 kr."}}]
[null,"Mad",null,null,{"$f":"Kæledyr[[#This Row],[Forventet pris]]-Kæledyr[[#This Row],[Faktisk pris]]","v":{"v":0,"d":"0.00 kr."}},null,"Velgørenhed 3",null,null,{"$f":"Gaver[[#This Row],[Forventet pris]]-Gaver[[#This Row],[Faktisk pris]]","v":{"v":0,"d":"0.00 kr."}}]
[null,"Sundhed",null,null,{"$f":"Kæledyr[[#This Row],[Forventet pris]]-Kæledyr[[#This Row],[Faktisk pris]]","v":{"v":0,"d":"0.00 kr."}},null,"Subtotal",null,null,{"$f":"SUBTOTAL(109,Gaver[Forskel])","v":{"v":0,"d":"0.00 kr."}}]
[null,"Pleje",null,null,{"$f":"Kæledyr[[#This Row],[Forventet pris]]-Kæledyr[[#This Row],[Faktisk pris]]","v":{"v":0,"d":"0.00 kr."}}]
[null,"Legetøj",null,null,{"$f":"Kæledyr[[#This Row],[Forventet pris]]-Kæledyr[[#This Row],[Faktisk pris]]","v":{"v":0,"d":"0.00 kr."}},null,"JURIDISK","Forventet pris","Faktisk pris","Forskel"]
[null,"Andet",null,null,{"$f":"Kæledyr[[#This Row],[Forventet pris]]-Kæledyr[[#This Row],[Faktisk pris]]","v":{"v":0,"d":"0.00 kr."}},null,"Advokat",null,null,{"$f":"Juridisk[[#This Row],[Forventet pris]]-Juridisk[[#This Row],[Faktisk pris]]","v":{"v":0,"d":"0.00 kr."}}]
[null,"Subtotal",null,null,{"$f":"SUBTOTAL(109,Kæledyr[Forskel])","v":{"v":0,"d":"0.00 kr."}},null,"Underholdsbidrag",null,null,{"$f":"Juridisk[[#This Row],[Forventet pris]]-Juridisk[[#This Row],[Faktisk pris]]","v":{"v":0,"d":"0.00 kr."}}]
[{"$nulls":6},"Betalinger ved tilbageholdelsesret eller vurdering",null,null,{"$f":"Juridisk[[#This Row],[Forventet pris]]-Juridisk[[#This Row],[Faktisk pris]]","v":{"v":0,"d":"0.00 kr."}}]
["Angiv oplysninger i tabellen Personlig pleje, der begynder i cellen til højre, og i tabellen Juridisk, der begynder i celle G52. Den næste vejledning er i celle A59.","PERSONLIG PLEJE","Forventet pris","Faktisk pris","Forskel",null,"Andet",null,null,{"$f":"Juridisk[[#This Row],[Forventet pris]]-Juridisk[[#This Row],[Faktisk pris]]","v":{"v":0,"d":"0.00 kr."}}]
[null,"Sundhed",null,null,{"$f":"Personligpleje[[#This Row],[Forventet pris]]-Personligpleje[[#This Row],[Faktisk pris]]","v":{"v":0,"d":"0.00 kr."}},null,"Subtotal",null,null,{"$f":"SUBTOTAL(109,Juridisk[Forskel])","v":{"v":0,"d":"0.00 kr."}}]
[null,"Hår/negle",null,null,{"$f":"Personligpleje[[#This Row],[Forventet pris]]-Personligpleje[[#This Row],[Faktisk pris]]","v":{"v":0,"d":"0.00 kr."}}]
["Samlede forventede udgifter beregnes automatisk i celle J59, samlede faktiske udgifter i J61 og samlede forskel i J63.","Beklædning",null,null,{"$f":"Personligpleje[[#This Row],[Forventet pris]]-Personligpleje[[#This Row],[Faktisk pris]]","v":{"v":0,"d":"0.00 kr."}},null,"SAMLEDE FORVENTEDE UDGIFTER",null,null,{"$f":"SUBTOTAL(109,Bolig[Forventet pris],Transport[Forventet pris],Forsikring[Forventet pris],Mad[Forventet pris],Kæledyr[Forventet pris],Personligpleje[Forventet pris],Underholdning[Forventet pris],Lån[Forventet pris],Skat[Forventet pris],Opsparing[Forventet pris],Gaver[Forventet pris],Juridisk[Forventet pris])","v":{"v":1195,"d":"1,195.00 kr."}}]
[null,"Tøjrens",null,null,{"$f":"Personligpleje[[#This Row],[Forventet pris]]-Personligpleje[[#This Row],[Faktisk pris]]","v":{"v":0,"d":"0.00 kr."}}]
[null,"Fitnesscenter",null,null,{"$f":"Personligpleje[[#This Row],[Forventet pris]]-Personligpleje[[#This Row],[Faktisk pris]]","v":{"v":0,"d":"0.00 kr."}},null,"SAMLEDE FAKTISKE UDGIFTER",null,null,{"$f":"SUBTOTAL(109,Bolig[Faktisk pris],Transport[Faktisk pris],Forsikring[Faktisk pris],Mad[Faktisk pris],Kæledyr[Faktisk pris],Personligpleje[Faktisk pris],Underholdning[Faktisk pris],Lån[Faktisk pris],Skat[Faktisk pris],Opsparing[Faktisk pris],Gaver[Faktisk pris],Juridisk[Faktisk pris])","v":{"v":1236,"d":"1,236.00 kr."}}]
[null,"Gebyrer eller kontingenter til organisationer",null,null,{"$f":"Personligpleje[[#This Row],[Forventet pris]]-Personligpleje[[#This Row],[Faktisk pris]]","v":{"v":0,"d":"0.00 kr."}}]
[null,"Andet",null,null,{"$f":"Personligpleje[[#This Row],[Forventet pris]]-Personligpleje[[#This Row],[Faktisk pris]]","v":{"v":0,"d":"0.00 kr."}},null,"SAMLET FORSKEL",null,null,{"$f":"J59-J61","v":{"v":-41,"d":"-41.00 kr."}}]
[null,"Subtotal",null,null,{"$f":"SUBTOTAL(109,Personligpleje[Forskel])","v":{"v":0,"d":"0.00 kr."}}]